bitfinex/quotes_BTCUSD_20240820
["timestamp","ask_amount","ask_price","bid_price","bid_amount"]
[1724183152632,0.406328,59670.0,59669.0,0.023]
[1724183152990,0.23874,59670.0,59669.0,0.023]
[1724183153413,0.24291872,59670.0,59669.0,0.0239031]
[1724183154266,0.2194,59670.0,59669.0,0.0239031]
[1724183161693,0.2194,59670.0,59669.0,0.0009031]
[1724183162099,0.2194,59670.0,59669.0,0.0089031]
[1724183162529,0.1403,59673.0,59669.0,0.0149031]
[1724183163117,0.1403,59673.0,59671.0,0.002]
[1724183163558,0.1403,59673.0,59669.0,0.0169031]
[1724183163771,0.1403,59673.0,59671.0,0.002]
[1724183163993,0.1037,59674.0,59673.0,0.004]
[1724183164210,0.1396,59677.0,59673.0,0.004]
[1724183164418,0.2481,59677.0,59676.0,0.001]
[1724183164645,0.1085,59677.0,59676.0,0.001]
[1724183164877,0.000821,59678.0,59677.0,0.001]
[1724183165304,0.000821,59678.0,59677.0,0.003]
[1724183165510,0.000821,59678.0,59673.0,0.004]
[1724183165727,0.000821,59678.0,59676.0,0.004]
[1724183165932,0.000821,59678.0,59677.0,0.004]
[1724183166170,0.000821,59678.0,59677.0,0.1409]
[1724183166387,0.000821,59678.0,59677.0,0.308468]
[1724183166613,0.000821,59678.0,59677.0,0.1359]
[1724183166789,0.000821,59678.0,59677.0,0.303468]
[1724183167492,0.000821,59678.0,59677.0,0.305468]
[1724183167699,0.000821,59678.0,59677.0,0.303468]
[1724183168132,0.000821,59678.0,59677.0,0.317468]
[1724183169209,0.000821,59678.0,59677.0,1.434579]
[1724183169410,0.000821,59678.0,59677.0,1.448579]
[1724183169820,0.000821,59678.0,59677.0,1.434579]
[1724183170046,0.000821,59678.0,59677.0,1.769716]
[1724183170272,0.60229154,59695.0,59677.0,1.769716]
[1724183170273,0.00644,59712.0,59693.0,0.001]
[1724183170501,0.00644,59712.0,59699.0,0.1037]
[1724183170502,0.49229154,59710.0,59699.0,0.1037]
[1724183170711,0.00644,59712.0,59700.0,0.002]
[1724183170919,0.00644,59712.0,59707.0,0.167482]
[1724183171128,0.00644,59712.0,59699.0,0.1037]
[1724183171129,0.00644,59712.0,59711.0,0.504419]
[1724183171335,0.00644,59712.0,59711.0,1.44072412]
[1724183171544,0.00644,59712.0,59711.0,1.083065]
[1724183171748,0.00644,59712.0,59711.0,1.418011]
[1724183172368,0.00644,59712.0,59711.0,2.201897]
[1724183172989,0.00644,59712.0,59711.0,1.866951]
[1724183173197,0.00644,59712.0,59711.0,1.565651]
[1724183173806,0.00644,59712.0,59711.0,1.518011]
[1724183174012,0.00644,59712.0,59708.0,0.334961]
[1724183174216,0.00644,59712.0,59707.0,0.002]
[1724183174423,0.00644,59712.0,59711.0,0.014]
[1724183174835,0.11774,59712.0,59711.0,0.014]
[1724183175044,0.1299522,59712.0,59711.0,0.014]
[1724183175460,0.1299522,59712.0,59694.0,0.335041]
[1724183175461,0.33496,59709.0,59691.0,0.002]
[1724183175664,0.167486,59707.0,59694.0,0.49229154]
[1724183175869,0.167486,59707.0,59687.0,0.1293]
[1724183175870,0.297088,59706.0,59691.0,0.004]
[1724183176070,0.297088,59706.0,59689.0,0.167534]
[1724183176071,0.03046532,59705.0,59689.0,0.167534]
[1724183176281,0.275393,59704.0,59686.0,0.335085]
[1724183176486,0.275393,59704.0,59682.0,0.474003]
[1724183176487,0.1306,59702.0,59687.0,0.002]
[1724183176697,0.167502,59701.0,59682.0,0.470003]
[1724183176903,0.1306,59702.0,59682.0,0.470003]
[1724183176904,0.2981,59702.0,59686.0,0.002]
[1724183177116,0.1119,59699.0,59679.0,0.00020171]
[1724183177323,0.30548972,59698.0,59689.0,0.002]
[1724183177502,0.28637631,59697.0,59689.0,0.002]
[1724183177750,0.00417872,59696.0,59689.0,0.002]
[1724183177957,0.18020509,59696.0,59689.0,0.002]
[1724183178161,0.1338,59695.0,59689.0,0.002]
[1724183178374,0.00417872,59694.0,59689.0,0.002]
[1724183178583,0.04328693,59693.0,59689.0,0.002]
[1724183178791,0.00851028,59694.0,59687.0,0.001]
[1724183178996,0.0085103,59692.0,59687.0,0.001]
[1724183179203,0.1338,59695.0,59683.0,0.002]
[1724183179204,0.00851021,59693.0,59683.0,0.002]
[1724183179406,0.1338,59695.0,59681.0,0.167554]
[1724183179407,0.0134622,59694.0,59681.0,0.169554]
[1724183179557,0.0085102,59692.0,59683.0,0.16955]
[1724183179770,0.1338,59695.0,59689.0,0.002]
[1724183179939,0.00850957,59691.0,59689.0,0.002]
[1724183180142,0.1338,59695.0,59689.0,0.002]
[1724183180343,0.1338,59695.0,59690.0,0.002]
[1724183180549,0.1338,59695.0,59692.0,0.002]
[1724183180747,0.1338,59695.0,59690.0,0.004]
[1724183181180,0.1338,59695.0,59692.0,0.002]
[1724183181351,0.1338,59695.0,59691.0,0.002]
[1724183181573,0.1584522,59695.0,59686.0,0.004]
[1724183181779,0.1584522,59695.0,59687.0,0.004]
[1724183182033,0.1584522,59695.0,59690.0,0.002]
[1724183182236,0.1584522,59695.0,59690.0,0.003]
[1724183182495,0.01592742,59694.0,59690.0,0.003]
[1724183182690,0.01592742,59694.0,59690.0,0.005]
[1724183183043,0.00850984,59693.0,59687.0,0.007]
[1724183183590,0.00850984,59693.0,59686.0,0.004]
[1724183183772,0.00850984,59693.0,59690.0,0.009]
[1724183183968,0.01828895,59692.0,59690.0,0.009]
[1724183184176,0.02689177,59692.0,59690.0,0.009]
[1724183184699,0.00860282,59692.0,59690.0,0.009]
[1724183185103,0.1338,59695.0,59690.0,0.009]
[1724183185428,0.1338,59695.0,59690.0,0.017]
[1724183185429,0.0086027,59691.0,59690.0,0.017]
[1724183185661,0.1338,59695.0,59690.0,0.017]
[1724183185855,0.00860247,59691.0,59690.0,0.017]
[1724183186050,0.1584522,59695.0,59690.0,0.017]
[1724183186361,0.33014892,59695.0,59687.0,0.01]
[1724183186529,0.167523,59693.0,59679.0,0.00420171]
[1724183186734,0.07520227,59694.0,59679.0,0.17176371]
[1724183186938,0.167529,59691.0,59690.0,0.007]
[1724183187168,0.346,59691.0,59690.0,0.007]
[1724183187304,0.25452651,59691.0,59690.0,0.007]
[1724183187504,0.25452651,59691.0,59690.0,0.013]
[1724183187706,0.25452651,59691.0,59690.0,0.007]
[1724183188192,0.25452651,59691.0,59690.0,0.001]
[1724183188838,0.25452651,59691.0,59690.0,0.007]
[1724183189055,0.28910433,59691.0,59690.0,0.007]
[1724183189485,0.28910433,59691.0,59690.0,0.015]
[1724183189686,0.25452651,59691.0,59690.0,0.015]
[1724183190268,0.00852651,59691.0,59690.0,0.015]
[1724183190677,0.2526,59696.0,59690.0,0.015]
[1724183190965,0.00850055,59691.0,59690.0,0.015]
[1724183191204,0.420115,59696.0,59690.0,0.015]
[1724183191521,0.420115,59696.0,59689.0,0.0009031]
[1724183191522,0.00850075,59691.0,59689.0,0.0009031]
[1724183191729,0.167518,59695.0,59689.0,0.0009031]
[1724183191891,0.167521,59694.0,59690.0,0.002]
[1724183192088,0.167527,59692.0,59690.0,0.002]
[1724183192294,0.167527,59692.0,59689.0,0.0009031]
[1724183192649,0.09284578,59693.0,59689.0,0.0089031]
[1724183192775,0.3647,59707.0,59689.0,0.0089031]
[1724183192776,0.4585,59703.0,59691.0,0.004]
[1724183192977,0.4585,59703.0,59690.0,0.1292]
[1724183192978,0.4585,59703.0,59690.0,0.1332]
[1724183193177,0.4585,59703.0,59692.0,0.002]
[1724183193178,0.625995,59703.0,59692.0,0.002]
[1724183193413,0.00417872,59702.0,59690.0,0.1292]
[1724183193612,0.167501,59701.0,59689.0,0.0069031]
[1724183193823,0.0176543,59697.0,59689.0,0.0069031]
[1724183194037,0.000822,59697.0,59689.0,0.0079031]
[1724183194447,0.000822,59697.0,59689.0,0.0069031]
[1724183194592,0.1285,59696.0,59689.0,0.0009031]
[1724183194790,0.05061252,59695.0,59690.0,0.006]
[1724183194997,0.1036,59694.0,59690.0,0.001]
[1724183195457,0.1036,59694.0,59689.0,0.0069031]
[1724183196335,0.1036,59694.0,59689.0,0.0129031]
[1724183196563,0.10777872,59694.0,59689.0,0.0129031]
[1724183196762,0.09535955,59693.0,59689.0,0.0129031]
[1724183196967,0.26288355,59693.0,59689.0,0.0069031]
[1724183197167,0.26288355,59693.0,59690.0,0.005]
[1724183197367,0.26288355,59693.0,59689.0,0.0069031]
[1724183197638,0.08764573,59692.0,59689.0,0.0069031]
[1724183197813,0.1036,59694.0,59689.0,0.0029031]
[1724183198027,0.00848104,59691.0,59689.0,0.0009031]
[1724183198244,0.1036,59694.0,59689.0,0.0049031]
[1724183198447,0.1036,59694.0,59690.0,0.002]
[1724183198928,0.03177315,59693.0,59689.0,0.0069031]
[1724183199435,0.03177315,59693.0,59689.0,0.0009031]
[1724183199578,0.00848095,59693.0,59689.0,0.0009031]
[1724183199784,0.00848095,59693.0,59690.0,0.003]
[1724183200618,0.00848095,59693.0,59690.0,0.004]
[1724183201050,0.00848095,59693.0,59690.0,0.001]
[1724183201388,0.00848095,59693.0,59690.0,0.003]
[1724183201587,0.1285,59696.0,59690.0,0.003]
[1724183201793,0.00848108,59692.0,59690.0,0.002]
[1724183201989,0.1285,59696.0,59690.0,0.002]
[1724183202167,0.00848106,59691.0,59690.0,0.002]
[1724183202371,0.1285,59696.0,59690.0,0.002]
[1724183202577,0.00848106,59691.0,59690.0,0.006]
[1724183202787,0.1285,59696.0,59690.0,0.006]
[1724183202989,0.00848106,59691.0,59690.0,0.006]
[1724183203196,0.15927436,59696.0,59690.0,0.006]
[1724183203368,0.00848092,59691.0,59690.0,0.006]
[1724183203569,0.15927436,59696.0,59690.0,0.004]
[1724183203775,0.00848092,59691.0,59690.0,0.004]
[1724183203992,0.15927436,59696.0,59689.0,0.0009031]
[1724183204251,0.00848095,59691.0,59689.0,0.0009031]
[1724183204455,0.04382034,59695.0,59690.0,0.007]
[1724183204862,0.04382034,59695.0,59690.0,0.005]
[1724183204863,0.01753607,59694.0,59690.0,0.005]
[1724183205896,0.01753607,59694.0,59690.0,0.007]
[1724183206104,0.01753607,59694.0,59690.0,0.1344]
[1724183206283,0.01753607,59694.0,59690.0,0.1364]
[1724183206695,0.01753607,59694.0,59693.0,0.001]
[1724183207099,0.01753607,59694.0,59693.0,0.002]
[1724183207308,0.01753607,59694.0,59693.0,0.004]
[1724183208320,0.01753607,59694.0,59693.0,0.007]
[1724183208518,0.01753607,59694.0,59693.0,0.003]
[1724183208679,0.01753607,59694.0,59689.0,0.0009031]
[1724183208886,0.01497581,59693.0,59689.0,0.0009031]
[1724183209531,0.01497581,59693.0,59685.0,0.1609491]
[1724183209685,0.01497581,59693.0,59689.0,0.009]
[1724183210661,0.01497581,59693.0,59686.0,0.002]
[1724183210869,0.01639119,59692.0,59685.0,0.1609491]
[1724183211056,0.01639119,59692.0,59687.0,0.004]
[1724183211357,0.01639119,59692.0,59689.0,0.013]
[1724183211559,0.01653273,59691.0,59690.0,0.002]
[1724183211920,0.02507385,59691.0,59689.0,0.01]
[1724183212693,0.02487229,59691.0,59689.0,0.01]
[1724183212897,0.02487229,59691.0,59685.0,0.001]
[1724183212898,0.02487229,59691.0,59690.0,0.014]
[1724183213304,0.19220166,59691.0,59690.0,0.0149031]
[1724183213919,0.19220166,59691.0,59690.0,0.0009031]
[1724183214857,0.32590166,59691.0,59690.0,0.0009031]
[1724183215058,0.32590166,59691.0,59690.0,0.0079031]
[1724183215494,0.32590166,59691.0,59690.0,0.0009031]
[1724183215904,0.32590166,59691.0,59690.0,0.0149031]
[1724183216308,0.32590166,59691.0,59690.0,0.0079031]
[1724183216544,0.32590166,59691.0,59690.0,0.0099031]
[1724183217193,0.32590166,59691.0,59690.0,0.0029031]
[1724183217372,0.32590166,59691.0,59690.0,0.0079031]
[1724183217583,0.32172294,59691.0,59690.0,0.0079031]
[1724183217829,0.30539177,59691.0,59690.0,0.0079031]
[1724183220594,0.06389177,59691.0,59690.0,0.0089031]
[1724183220796,0.06389177,59691.0,59690.0,0.0079031]
[1724183222131,0.06389177,59691.0,59690.0,0.0089031]
[1724183222329,0.06389177,59691.0,59690.0,0.0099031]
[1724183222876,0.05535065,59691.0,59690.0,0.0099031]
[1724183223184,0.05535065,59693.0,59690.0,0.0079031]
[1724183223318,0.05535065,59692.0,59690.0,0.0079031]
[1724183223524,0.01753607,59694.0,59690.0,0.0079031]
[1724183223525,0.05535065,59691.0,59690.0,0.0079031]
[1724183223738,0.05535065,59693.0,59690.0,0.0079031]
[1724183224132,0.00853076,59692.0,59690.0,0.0029031]
[1724183224342,0.01753607,59694.0,59690.0,0.0009031]
[1724183224343,0.05535065,59691.0,59690.0,0.0009031]
[1724183224665,0.05535065,59693.0,59690.0,0.0049031]
[1724183224831,0.00417872,59692.0,59690.0,0.0049031]
[1724183225061,0.01753607,59694.0,59690.0,0.0019031]
[1724183225062,0.18405065,59691.0,59690.0,0.0019031]
[1724183225487,0.21273982,59691.0,59690.0,0.0059031]
[1724183225696,0.21691854,59691.0,59690.0,0.0059031]
[1724183225883,0.21691854,59691.0,59690.0,0.0049031]
[1724183226109,0.32003982,59691.0,59690.0,0.0119031]
[1724183226895,0.32003982,59691.0,59690.0,0.0079031]
[1724183227097,0.49174754,59691.0,59690.0,0.0079031]
[1724183227322,0.49174754,59691.0,59690.0,0.0169031]
[1724183227323,0.82780554,59691.0,59690.0,0.0169031]
[1724183228516,1.16286354,59691.0,59690.0,0.0169031]
[1724183228920,1.49792154,59691.0,59690.0,0.0169031]
[1724183229375,1.49792154,59691.0,59690.0,0.0099031]
[1724183229745,1.49374282,59691.0,59690.0,0.0139031]
[1724183229905,1.49274282,59691.0,59690.0,0.0009031]
[1724183230112,1.49274282,59691.0,59690.0,0.0069031]
[1724183230319,1.49274282,59691.0,59690.0,0.0079031]
[1724183230320,1.49374282,59691.0,59690.0,0.0079031]
[1724183230727,1.49274282,59691.0,59690.0,0.0019031]
[1724183231153,1.52274282,59691.0,59690.0,0.0019031]
[1724183231589,1.52274282,59691.0,59690.0,0.0059031]
[1724183231590,1.62274282,59691.0,59690.0,0.0059031]
[1724183231793,1.64574282,59691.0,59690.0,0.0059031]
[1724183232532,1.64574282,59691.0,59690.0,0.0049031]
[1724183232742,1.64574282,59691.0,59669.0,0.0009031]
[1724183232743,0.2434,59677.0,59669.0,0.0009031]
[1724183232952,0.2917,59675.0,59669.0,0.0009031]
[1724183233129,0.167583,59672.0,59669.0,0.0009031]
[1724183233362,0.97134,59670.0,59669.0,0.0009031]
[1724183233572,1.13669065,59670.0,59669.0,0.0009031]
[1724183233774,1.14502648,59670.0,59669.0,0.0009031]
[1724183233980,1.48020248,59670.0,59669.0,0.0009031]
[1724183234191,1.48020248,59670.0,59669.0,0.0059031]
[1724183234192,1.60320248,59670.0,59669.0,0.0059031]
[1724183234447,1.76245825,59670.0,59669.0,0.0089031]
[1724183234626,1.79345825,59670.0,59669.0,0.0039031]
[1724183235201,1.79445825,59670.0,59669.0,0.0129031]
[1724183235405,1.79445825,59670.0,59669.0,0.0099031]
[1724183235605,2.12963425,59670.0,59669.0,0.0099031]
[1724183235805,2.13063425,59670.0,59669.0,0.0149031]
[1724183236266,2.12963425,59670.0,59669.0,0.0059031]
[1724183236471,2.12863425,59670.0,59669.0,0.0009031]
[1724183236664,2.12863425,59670.0,59650.0,0.0009042]
[1724183236665,0.2434,59652.0,59650.0,0.0009042]
[1724183236914,0.00417872,59651.0,59650.0,0.0009042]
[1724183237132,0.01251329,59651.0,59650.0,0.0009042]
[1724183238130,0.18015429,59651.0,59650.0,0.0029042]
[1724183238336,0.31873302,59651.0,59650.0,0.0029042]
[1724183238542,0.00833457,59651.0,59650.0,0.0029042]
[1724183238936,0.167633,59654.0,59650.0,0.0069042]
[1724183239139,0.00812946,59651.0,59650.0,0.0069042]
[1724183239363,0.167633,59654.0,59650.0,0.0009042]
[1724183239693,0.167633,59654.0,59650.0,0.0059042]
[1724183239694,0.002,59651.0,59650.0,0.0059042]
[1724183239889,0.001,59651.0,59650.0,0.0059042]
[1724183240092,0.00912973,59651.0,59650.0,0.0059042]
[1724183240394,0.0663389,59653.0,59650.0,0.0009042]
[1724183240395,0.2339759,59653.0,59650.0,0.0009042]
[1724183240573,0.00912973,59651.0,59650.0,0.0059042]
[1724183240793,0.001,59651.0,59650.0,0.0059042]
[1724183240950,0.00912978,59651.0,59650.0,0.0059042]
[1724183241152,0.00812978,59651.0,59650.0,0.0009042]
[1724183241350,0.03400073,59651.0,59650.0,0.0009042]
[1724183241552,0.3107495,59651.0,59650.0,0.0009042]
[1724183241966,0.3107495,59651.0,59650.0,0.0049042]
[1724183242167,0.1431085,59651.0,59650.0,0.0049042]
[1724183242372,0.00812978,59651.0,59650.0,0.0049042]
[1724183242666,0.05889171,59651.0,59650.0,0.0079042]
[1724183242993,0.00812978,59651.0,59650.0,0.0079042]
[1724183243171,0.00812978,59651.0,59650.0,0.0049042]
[1724183243528,0.00912978,59651.0,59650.0,0.0099042]
[1724183246216,0.00912978,59651.0,59650.0,0.1217042]
[1724183246361,0.001,59651.0,59650.0,0.1197042]
[1724183247689,0.001,59651.0,59650.0,0.0099042]
[1724183248337,0.00895342,59651.0,59650.0,0.0099042]
[1724183248550,0.001,59651.0,59650.0,0.0099042]
[1724183248753,0.02650132,59651.0,59650.0,0.0099042]
[1724183248953,0.01854787,59651.0,59650.0,0.0099042]
[1724183249102,0.02650132,59651.0,59650.0,0.0099042]
[1724183250968,0.01854787,59651.0,59650.0,0.2586042]
[1724183251812,0.01854787,59651.0,59650.0,0.2546042]
[1724183251987,0.01854787,59651.0,59650.0,0.2576042]
[1724183252202,0.01954787,59651.0,59650.0,0.2676042]
[1724183252583,0.01954787,59651.0,59650.0,0.2686042]
[1724183253274,0.01954787,59651.0,59650.0,0.2676042]
[1724183253842,0.01954787,59651.0,59650.0,0.1619042]
[1724183255216,0.01954787,59651.0,59650.0,0.0189042]
[1724183255550,0.02750072,59651.0,59650.0,0.0189042]
[1724183256427,0.02750072,59651.0,59650.0,0.0199042]
[1724183256851,0.01954787,59651.0,59650.0,0.0199042]
[1724183258287,0.01954787,59651.0,59650.0,0.1905482]
[1724183258492,0.01954787,59651.0,59650.0,0.4365482]
[1724183258665,0.01954787,59651.0,59650.0,0.2689042]
[1724183258867,0.01954787,59651.0,59650.0,0.7718372]
[1724183259315,0.01954787,59651.0,59650.0,0.4365482]
[1724183259729,0.01954787,59651.0,59650.0,0.2689042]
[1724183260556,0.01954787,59651.0,59650.0,0.4365482]
[1724183260773,0.01954787,59651.0,59650.0,0.7718372]
[1724183262089,0.01954787,59651.0,59650.0,1.1071262]
[1724183262284,1e-08,59651.0,59650.0,1.4424152]
[1724183263240,0.000822,59669.0,59668.0,0.001]
[1724183263440,0.000822,59669.0,59668.0,0.338188]
[1724183263666,0.000822,59669.0,59668.0,1.08917]
[1724183264732,0.000822,59669.0,59668.0,1.08817]
[1724183264946,0.000822,59669.0,59668.0,0.752982]
[1724183265145,0.000822,59669.0,59668.0,0.762982]
[1724183265354,0.001822,59669.0,59668.0,0.762982]
[1724183265567,0.001822,59669.0,59668.0,0.773982]
[1724183267491,0.001822,59669.0,59668.0,0.770982]
[1724183267991,0.001822,59669.0,59668.0,0.773982]
[1724183268213,0.001822,59669.0,59668.0,0.770982]
[1724183268526,0.001822,59669.0,59668.0,0.759982]
[1724183268747,0.001822,59669.0,59668.0,0.774982]
[1724183268948,0.000822,59669.0,59668.0,1.10017]
[1724183269153,0.000822,59669.0,59668.0,1.11617]
[1724183269374,0.000822,59669.0,59668.0,0.780982]
[1724183269639,0.000822,59669.0,59668.0,0.777982]
[1724183270019,0.000822,59669.0,59668.0,0.778982]
[1724183270221,0.000822,59669.0,59668.0,0.777982]
[1724183270463,0.000822,59669.0,59668.0,0.530782]
[1724183270790,0.000822,59669.0,59668.0,0.195594]
[1724183271016,0.000822,59669.0,59668.0,0.197594]
[1724183272507,0.000822,59669.0,59668.0,0.8698742]
[1724183272686,0.000822,59669.0,59668.0,1.0123742]
[1724183273430,0.000822,59669.0,59668.0,1.4617622]
[1724183274929,0.000822,59669.0,59668.0,1.5617622]
[1724183275465,0.000822,59669.0,59668.0,1.61134937]
[1724183275844,0.000822,59669.0,59668.0,1.5617622]
[1724183276057,0.00062029,59669.0,59668.0,1.5617622]
[1724183276855,0.00062029,59669.0,59668.0,1.5477622]
[1724183277057,0.00062029,59669.0,59668.0,1.5617622]
[1724183277257,1e-08,59670.0,59669.0,1.176137]
[1724183277772,1e-08,59670.0,59669.0,1.308437]
[1724183278177,1e-08,59670.0,59669.0,1.412637]
[1724183278493,1e-08,59670.0,59669.0,1.426637]
[1724183278851,1e-08,59670.0,59669.0,1.761819]
[1724183279049,0.01754007,59685.0,59684.0,0.502647]
[1724183279199,0.01754007,59685.0,59684.0,0.504647]
[1724183279408,0.1306,59692.0,59688.0,0.002]
[1724183279606,0.1306,59692.0,59683.0,0.167551]
[1724183279816,0.0244131,59691.0,59684.0,0.167548]
[1724183280242,0.000821,59691.0,59688.0,0.002]
[1724183280443,0.000821,59691.0,59689.0,0.001]
[1724183280645,0.000821,59691.0,59689.0,0.335068]
[1724183280869,0.000821,59691.0,59686.0,0.167543]
[1724183281089,0.000821,59691.0,59686.0,0.168543]
[1724183281236,0.02716688,59691.0,59686.0,0.167543]
[1724183281440,0.02716688,59691.0,59688.0,0.002]
[1724183281649,0.02616688,59691.0,59688.0,0.002]
[1724183281859,0.000821,59691.0,59688.0,0.002]
[1724183282563,0.000821,59691.0,59686.0,0.176543]
[1724183282765,0.000821,59691.0,59686.0,0.009]
[1724183283372,0.000821,59691.0,59685.0,0.167544]
[1724183283571,0.000821,59691.0,59684.0,0.335095]
[1724183283572,0.000821,59691.0,59686.0,0.167543]
[1724183283794,0.02616688,59691.0,59688.0,0.017]
[1724183284376,0.02616688,59691.0,59688.0,0.008]
[1724183284629,0.02616688,59691.0,59685.0,0.179546]
[1724183284986,0.02616688,59691.0,59688.0,0.008]
[1724183284987,0.13727872,59690.0,59688.0,0.008]
[1724183285187,0.1136,59689.0,59688.0,0.008]
[1724183285389,0.1136,59689.0,59688.0,0.017]
[1724183285573,0.1136,59689.0,59688.0,0.009]
[1724183286999,0.1136,59689.0,59688.0,0.01]
[1724183287275,0.1136,59689.0,59681.0,0.003]
[1724183287276,0.15653039,59689.0,59685.0,0.009]
[1724183287518,0.15653039,59689.0,59681.0,0.001]
[1724183287748,0.1136,59689.0,59688.0,0.013]
[1724183287988,0.1331,59690.0,59688.0,0.013]
[1724183288222,0.1331,59690.0,59688.0,0.006]
[1724183288461,0.1331,59690.0,59686.0,0.002]
[1724183289430,0.1331,59690.0,59685.0,0.007]
[1724183289431,0.0244721,59689.0,59685.0,0.007]
[1724183290178,0.1331,59690.0,59684.0,0.168548]
[1724183290462,0.000821,59691.0,59688.0,0.1508]
[1724183290715,0.000821,59691.0,59689.0,0.167533]
[1724183291011,0.000821,59691.0,59690.0,0.83866]
[1724183291194,0.000821,59691.0,59690.0,1.282324]
[1724183291926,0.000821,59691.0,59690.0,1.425224]
[1724183292663,0.000821,59691.0,59690.0,1.09416]
[1724183293921,0.000821,59691.0,59690.0,1.10816]
[1724183294174,0.000821,59691.0,59690.0,1.10416]
[1724183294904,0.000822,59697.0,59696.0,0.001]
[1724183295169,0.000822,59697.0,59696.0,0.313415]
[1724183295425,0.000822,59697.0,59696.0,0.648445]
[1724183295683,0.000822,59697.0,59696.0,0.310415]
[1724183295919,0.000822,59697.0,59696.0,0.648445]
[1724183296415,0.000822,59697.0,59696.0,0.656445]
[1724183297120,0.000822,59697.0,59696.0,0.328415]
[1724183297691,0.250222,59697.0,59696.0,0.015]
[1724183297918,0.4785576,59697.0,59696.0,0.015]
[1724183298163,0.76054913,59697.0,59696.0,0.015]
[1724183298627,0.42552413,59697.0,59696.0,0.015]
[1724183298877,0.25801213,59697.0,59696.0,0.015]
[1724183299132,0.42552413,59697.0,59696.0,0.015]
[1724183299642,0.25801213,59697.0,59696.0,0.015]
[1724183300134,0.25801213,59697.0,59696.0,0.0134]
[1724183300629,0.25801213,59697.0,59696.0,0.011]
[1724183300864,0.14761213,59697.0,59696.0,0.011]
[1724183301105,0.00861213,59697.0,59696.0,0.011]
[1724183303779,0.00861213,59697.0,59696.0,0.0093]
[1724183304031,0.00861213,59697.0,59696.0,0.0078]
[1724183306208,0.05682334,59697.0,59696.0,0.0078]
[1724183306711,0.05682334,59697.0,59696.0,0.0088]
[1724183306712,0.00861213,59697.0,59696.0,0.0088]
[1724183306948,0.00861213,59697.0,59696.0,0.0078]
[1724183307179,0.00861213,59697.0,59696.0,0.1209]
[1724183307483,0.000822,59697.0,59696.0,0.1209]
[1724183309103,0.000822,59697.0,59696.0,0.0078]
[1724183309523,0.07171193,59697.0,59696.0,0.0078]
[1724183309728,0.21384641,59697.0,59696.0,0.0078]
[1724183310554,0.21802513,59697.0,59696.0,0.0078]
[1724183312661,0.21384641,59697.0,59696.0,0.0078]
[1724183312791,0.21802513,59697.0,59696.0,0.0078]
[1724183313407,0.21802513,59697.0,59696.0,0.1209]
[1724183313408,0.06381067,59697.0,59696.0,0.1209]
[1724183313607,0.00851294,59697.0,59696.0,0.2585]
[1724183313844,0.00077846,59697.0,59696.0,0.0078]
[1724183314067,0.30732345,59697.0,59696.0,0.0078]
[1724183314289,0.36377367,59697.0,59696.0,0.0078]
[1724183314711,0.86631067,59697.0,59696.0,0.0078]
[1724183314929,1.20133567,59697.0,59696.0,0.0078]
[1724183315348,1.30133567,59697.0,59696.0,0.0078]
[1724183315553,1.30233567,59697.0,59696.0,0.0078]
[1724183315763,1.30233567,59697.0,59696.0,0.007]
[1724183315972,1.30233567,59697.0,59677.0,0.335134]
[1724183315973,0.1321,59691.0,59679.0,0.167561]
[1724183316179,0.1321,59691.0,59678.0,0.001]
[1724183316180,0.15291756,59690.0,59678.0,0.001]
[1724183316384,0.19158918,59689.0,59678.0,0.003]
[1724183316595,0.07831046,59688.0,59678.0,0.003]
[1724183316802,0.05948918,59687.0,59680.0,0.16756]
[1724183317012,0.06304448,59686.0,59680.0,0.16756]
[1724183317213,0.05531046,59685.0,59680.0,0.16756]
[1724183317429,0.02563764,59687.0,59680.0,0.16756]
[1724183317628,0.02563764,59687.0,59678.0,0.003]
[1724183317629,0.06306679,59686.0,59678.0,0.336129]
[1724183317837,0.01807376,59686.0,59682.0,0.001]
[1724183318057,0.00773401,59685.0,59682.0,0.001]
[1724183318272,0.023,59684.0,59679.0,0.176562]
[1724183318485,0.02717872,59684.0,59680.0,0.014]
[1724183318703,0.02717872,59684.0,59680.0,0.16756]
[1724183318910,0.02717872,59684.0,59682.0,0.001]
[1724183319125,0.023,59684.0,59682.0,0.0057]
[1724183319338,0.00767531,59683.0,59682.0,0.0023]
[1724183319557,0.03067531,59683.0,59682.0,0.0014]
[1724183319756,0.023,59683.0,59682.0,0.0014]
[1724183319957,0.14207549,59683.0,59682.0,0.0014]
[1724183320166,0.27835421,59683.0,59682.0,0.0014]
[1724183320382,0.81034537,59683.0,59682.0,0.0014]
[1724183320588,0.81034537,59683.0,59680.0,0.0009042]
[1724183320589,0.502672,59681.0,59680.0,0.0009042]
[1724183320790,0.37799309,59681.0,59680.0,0.0009042]
[1724183321041,0.37799309,59681.0,59680.0,0.0149042]
[1724183321042,0.38586618,59681.0,59680.0,0.0149042]
[1724183321260,0.50932829,59681.0,59680.0,0.0009042]
[1724183321908,0.84444329,59681.0,59680.0,0.0009042]
[1724183322314,0.95604329,59681.0,59680.0,0.0039042]
[1724183322552,0.62092829,59681.0,59680.0,0.0039042]
[1724183322781,0.91262829,59681.0,59680.0,0.0039042]
[1724183322991,1.24774329,59681.0,59680.0,0.0039042]
[1724183323609,0.91262829,59681.0,59680.0,0.0039042]
[1724183323973,0.45337129,59681.0,59680.0,0.0039042]
[1724183324386,0.62092829,59681.0,59680.0,0.0039042]
[1724183324827,0.45337129,59681.0,59680.0,0.0039042]
[1724183325056,0.32990918,59681.0,59680.0,0.0039042]
[1724183330055,0.27457309,59681.0,59680.0,0.0039042]
[1724183331762,0.03087309,59681.0,59680.0,0.0039042]
[1724183332173,0.03087309,59681.0,59679.0,0.1140042]
[1724183332376,0.023,59680.0,59679.0,0.1140042]
[1724183332788,0.023,59680.0,59679.0,0.1160042]
[1724183333026,0.024,59683.0,59682.0,0.002]
[1724183333443,0.0317647,59683.0,59682.0,0.002]
[1724183334268,0.0317647,59683.0,59679.0,0.1160042]